Cogmind - Beta 15 @@@ ROGUE MODE // 2025.06.20 @ 02:32:55 Player: Mogwok Wargfriend Result: Destroyed by S-10 Pest with Light Assault Rifle Performance ------------- Evolutions (0) 0 Regions Visited (2) 400 Robots Destroyed (32) 160 Value Destroyed (712) 712 Prototype IDs (2) 40 Alien Tech Used (0) 0 Bonus (0) 0 TOTAL SCORE: 1312 Bonus ------- None Cogmind --------- Core Integrity 0/250 Matter 225/300 Energy 200/200 System Corruption 0% Temperature Cool (0) Movement Rolling (110) Location -10/Subcaves Parts ------- > --- POWER (1) -------- Subdweller Power Source > --- PROPULSION (2) --- Subdweller Monowheel Subdweller Monowheel > --- UTILITY (2) ------ Small Storage Unit Makeshift Light Armor Plating > --- WEAPON (2) ------- Battle Cannon Grenade Launcher > --- INVENTORY (8) ---- Subdweller Power Source Makeshift Leg Subdweller Optics Subdweller Machine Gun Subdweller Machine Gun Barrage Gun Mining Laser Scrap Shield Fragment (49) Peak State ------------ > --- POWER ------------ Subdweller Power Source > --- PROPULSION ------- Subdweller Monowheel Subdweller Monowheel > --- UTILITY ---------- Small Storage Unit Makeshift Light Armor Plating > --- WEAPON ----------- Heavy Assault Rifle Barrage Gun > --- INVENTORY -------- Makeshift Leg Subdweller Optics Subdweller Machine Gun Battle Cannon Grenade Launcher Grenade Launcher Mining Laser Scrap Shield Fragment [Rating: 17] Favorites ----------- Power Subdweller Power Source Engine Subdweller Power Source Propulsion Wheel Treads Light Treads Wheel Wheel Utility Small Storage Unit Device Heat Sink Storage Small Storage Unit Protection Makeshift Light Armor Plating Weapon Heavy Assault Rifle Energy Gun EM Shotgun Ballistic Gun Heavy Assault Rifle Ballistic Cannon Battle Cannon Launcher Grenade Launcher Special Weapon Mining Laser Build | -11 -10 -10 ------- Run | Yrd Mat Sub Slots Evolved . | . . . Power . | . . . Propulsion . | . . . Utility . | . . . Weapon . | . . . Parts Attached 31 | 8 9 14 Power 5 | 1 1 3 Engine 5 | 1 1 3 Core . | . . . Reactor . | . . . Propulsion 9 | 3 2 4 Treads 1 | . . 1 Leg . | . . . Wheel 8 | 3 2 3 Hover . | . . . Flight . | . . . Utility 4 | 2 1 1 Device 2 | 1 1 . Storage 1 | 1 . . Processor . | . . . Hackware . | . . . Protection 1 | . . 1 Artifact . | . . . Weapon 13 | 2 5 6 Energy Gun 4 | 1 2 1 Energy Cannon . | . . . Ballistic Gun 6 | 1 2 3 Ballistic Cannon 1 | . . 1 Launcher 1 | . . 1 Special Weapon 1 | . 1 . Impact Weapon . | . . . Slashing Weapon . | . . . Piercing Weapon . | . . . Special Melee Weapon . | . . . Unidentified Prototypes . | . . . Parts Lost 11 | . 3 8 Power 3 | . . 3 Propulsion 3 | . 1 2 Utility 1 | . 1 . Weapon 4 | . 1 3 Highest Loss Streak 4 | . 2 4 To Critical Strikes . | . . . Average Backups 7 | 3 7 7 Power . | . 1 . Propulsion 1 | 2 2 . Utility . | . . 1 Weapon 3 | . 3 4 Tool/Special . | . . . Unused Backups 15 | . 8 7 Power 1 | . . 1 Propulsion 5 | . 3 2 Utility 2 | . . 2 Weapon 6 | . 4 2 Tool/Special 1 | . 1 . Average Slot Usage (%) 98 | . 99 95 Engine 13 | . 14 12 Wheel 27 | . 27 27 Device 9 | . 13 3 Storage 14 | . 14 14 Protection 4 | . . 10 Energy Gun 9 | . 14 4 Ballistic Gun 12 | . 10 15 Ballistic Cannon 1 | . . 4 Special Weapon 2 | . 3 1 Peak Build Rating 17 | 7 10 17 Average Rating 10 | 5 8 14 On Entrance 5 | . 7 9 Naked Turns . | . . . Heaviest Build 21 | 13 17 21 Greatest Support 40 | 26 26 40 Greatest Overweight (x) 1 | . . 1 Average Overweight (x) . | . . . Largest Inventory Capacity 8 | 8 8 8 Average Capacity 7 | 7 8 8 Most Carried 8 | 8 8 8 Average Carried 7 | 4 7 7 Final Capacity 8 | 8 8 8 Final Carried 8 | 7 8 8 Class Distribution -------------------- 80% | Mutant 19% | Scavenger-Mutant Dominant Class ---------------- Mutant | -10/Materials Mutant | -10/Subcaves Resources | -11 -10 -10 ----------- Run | Yrd Mat Sub Matter Collected 755 | 284 226 245 Remotely . | . . . Salvage Created 1140 | 104 718 318 Parts 70 | 7 48 15 Haulers Intercepted 2 | . 2 . Recyclers Shooed 1 | . 1 . Parts Field Recycled . | . . . Retrieved Matter . | . . . Parts Self-Destructed 5 | . . 5 Prevented . | . . . Kills | -11 -10 -10 ------- Run | Yrd Mat Sub Combat Hostiles Destroyed 19 | . 12 7 Guns 18 | . 12 6 Cannons 1 | . . 1 Classes Destroyed 10 | 2 7 1 Worker 3 | . 3 . Tunneler 2 | 1 1 . Hauler 2 | . 2 . Recycler 2 | 1 1 . Mechanic 1 | . 1 . Operator 1 | . 1 . Watcher 2 | . 2 . Swarmer 4 | . 4 . Grunt 8 | . 8 . Subdweller 7 | . . 7 Best Kill Streak 4 | 2 4 2 Combat Bots Only 3 | . 3 2 Max Kills in Single Turn 1 | 1 1 1 Gunslinging . | . . . Exploded . | . . . Melee . | . . . Uniques/NPCs Destroyed . | . . . Combat | -11 -10 -10 -------- Run | Yrd Mat Sub Hostile Shots Fired 113 | . 48 65 Missed 27 | . 9 18 Hits 86 | . 39 47 Projectile 86 | . 39 47 AOE 1 | . 1 . Damage Taken 1457 | . 463 994 Core 255 | . 83 172 Absorbed by Shields . | . . . Core Remaining (%) 100 | 100 . . Volleys Fired 160 | 4 101 55 Largest 2 | 2 2 2 Hottest 100 | 60 100 100 Shots Fired 249 | 8 157 84 Gun 188 | 8 117 63 Cannon 8 | . . 8 Launcher 1 | . . 1 Special 52 | . 40 12 Kinetic 112 | 4 60 48 Thermal 96 | 4 69 23 Explosive 1 | . . 1 Electromagnetic 40 | . 28 12 Robot Hit Streak 13 | 3 8 13 Robot Miss Streak 4 | 2 4 2 Penetration Max . | . . . Secondary Targets 1 | . 1 . Max Gunslinging Chain 1 | . 1 . Shots Hit Robots 140 | 4 81 55 Core Hits 62 | 3 42 17 Critical Kills . | . . . Critical Parts Destroyed . | . . . Critical Strikes . | . . . Melee Attacks . | . . . Impact . | . . . Slashing . | . . . Piercing . | . . . Sneak Attacks . | . . . Combat Hostiles . | . . . Follow-up Attacks . | . . . Damage Inflicted 1914 | 41 1046 827 Guns 1794 | 41 1022 731 Cannons 88 | . . 88 Explosions 8 | . . 8 Melee . | . . . Ramming . | . . . Kinetic 1022 | 7 462 553 Thermal 416 | 34 273 109 Explosive 8 | . . 8 Electromagnetic 468 | . 311 157 Impact . | . . . Slashing . | . . . Piercing . | . . . Highest Corruption . | . . . Average Corruption . | . . . Corruption Purged . | . . . Corruption Blocked . | . . . Overload Shots . | . . . Overflow Damage . | . . . Projectiles . | . . . Explosions . | . . . Melee . | . . . Knockbacks . | . . . Impact . | . . . Kinetic . | . . . Secondary . | . . . Self-Inflicted Damage . | . . . Shots . | . . . Rammed . | . . . Targets Rammed . | . . . Kicked . | . . . Crushed . | . . . Highest Temperature 102 | 40 102 . Average Temperature 30 | 24 30 . Received Heat Transfer 381 | . 219 162 Siege Activations . | . . . Martial Activations . | . . . Shielding Activations . | . . . Robots Disrupted . | . . . Combat Hostiles . | . . . Robots Corrupted . | . . . Combat Hostiles . | . . . Parts Fried 2 | . . 2 Impact Corruptions . | . . . Robots Melted . | . . . Combat Hostiles . | . . . Parts Melted 2 | . . 2 Heat Transferred 950 | 75 625 250 Parts Sabotaged . | . . . Parts Stolen . | . . . Parts Stripped . | . . . Power Chain Reactions . | . . . Alert | -11 -10 -10 ------- Run | Yrd Mat Sub Maximum Alert Level . | . . . Low Security (%) 100 | 100 100 . Level 1 . | . . . Level 2 . | . . . Level 3 . | . . . Level 4 . | . . . Level 5 . | . . . High Security . | . . . Max Security . | . . . Peak Influence 110 | 5 110 . Initial . | . . . Average 34 | . 36 . Influence Increases 442 | 10 432 . Destroy 0b10 Robot/C 240 | . 240 . Destroy 0b10 Robot/NC 65 | 10 55 . Destroy Leader 48 | . 48 . Successful Hack 14 | . 14 . Destroy Structure 15 | . 15 . Partial Spotted 15 | . 15 . Lose Combat Pursuer 45 | . 45 . Influence Decreases 442 | 10 432 . Time Decay 412 | 10 402 . Lost Part 30 | . 30 . Squads Dispatched 1 | . 1 . Investigation . | . . . Extermination . | . . . Reinforcement 1 | . 1 . Assault . | . . . Garrison . | . . . Intercept . | . . . Searches Triggered . | . . . Construction Impeded . | . . . Haulers Reinforced . | . . . Active Scanning Responses . | . . . Cargo Convoy Interrupts . | . . . Stealth | -11 -10 -10 --------- Run | Yrd Mat Sub Distress Signals 1 | . 1 . Communications Jammed . | . . . Distress Signals . | . . . Times Spotted 34 | . 23 11 Peak Tracking Total 3 | . 3 2 Tactical Retreats 3 | . 3 . Traps | -11 -10 -10 ------- Run | Yrd Mat Sub Traps Triggered . | . . . Indirectly . | . . . Trap Hack Attempts . | . . . Triggered . | . . . Disarmed . | . . . Reprogrammed . | . . . Reused . | . . . Traps Extracted . | . . . Installed . | . . . Triggered . | . . . Machines | -11 -10 -10 ---------- Run | Yrd Mat Sub Machines Disabled . | . . . Max in Single Turn . | . . . Machines Repaired . | . . . Machines Dismantled . | . . . Machines Sabotaged . | . . . Overloaded Fab Kills . | . . . Hacking | -11 -10 -10 --------- Run | Yrd Mat Sub Machines Accessed 9 | . 8 1 Terminals 7 | . 7 . Fabricators . | . . . Repair Stations . | . . . Recycling Units 1 | . 1 . Scanalyzers . | . . . Garrison Access . | . . . Total Hacks 23 | . 18 5 Successful 14 | . 9 5 Failed 8 | . 8 . Catastrophic 1 | . 1 . Database Lockouts 1 | . 1 . Manual 16 | . 16 . Terminals 17 | . 17 . Fabricators . | . . . Repair Stations . | . . . Recycling Units 1 | . 1 . Scanalyzers . | . . . Garrison Access . | . . . Terminal Hacks 11 | . 6 5 Record 7 | . 2 5 Robot Analysis 1 | . 1 . Prototype ID Bank 1 | . 1 . Branch Access Points 1 | . 1 . Emergency Access Points 1 | . 1 . Fabricator Hacks . | . . . Repair Station Hacks . | . . . Recycling Unit Hacks . | . . . Scanalyzer . | . . . Garrison Access Hacks . | . . . Unauthorized Hacks 3 | . 3 . Terminals 2 | . 2 . Assimilate 1 | . 1 . Operators 1 | . 1 . Fabricators . | . . . Repair Stations . | . . . Recycling Units 1 | . 1 . Reject 1 | . 1 . Scanalyzers . | . . . Garrison Access . | . . . Data Cores Recovered . | . . . Used . | . . . Hacking Detections 7 | . 7 . Full Trace Events . | . . . Feedback Events . | . . . Feedback Blocked . | . . . Robot Schematics Acquired . | . . . Robots Built . | . . . Authchips . | . . . Time . | . . . Total Robot Build Rating . | . . . Part Schematics Acquired . | . . . Parts Built . | . . . Authchips . | . . . Time . | . . . Total Part Build Rating . | . . . Parts Repaired . | . . . Time . | . . . Parts Recycled . | . . . Recycled Matter . | . . . Retrieved Matter . | . . . Retrieved Components . | . . . Parts Scanalyzed . | . . . Part Schematics Acquired . | . . . Parts Damaged . | . . . Bothacking | -11 -10 -10 ------------ Run | Yrd Mat Sub Used RIF Installer . | . . . Robots Hacked . | . . . Non-combat . | . . . Combat . | . . . Robot Hacks Applied . | . . . Relay Couplers Released . | . . . Fabnet Peak Effective % . | . . . Robots Rewired . | . . . Allies Hacked . | . . . Hacks Repelled . | . . . Allies | -11 -10 -10 -------- Run | Yrd Mat Sub Total Allies 1 | . 1 . Largest Group 1 | . 1 . Highest-Rated Group 10 | . 10 . Highest-Rated Ally 10 | . 10 . Total Orders . | . . . Ally Attacks . | . . . Total Damage . | . . . Kills . | . . . Allies Corrupted . | . . . Allies Melted . | . . . Intel | -11 -10 -10 ------- Run | Yrd Mat Sub Active Infowar (turns) 711 | 8 703 . Seismic 711 | 8 703 . Robot Analysis Total 1 | . 1 . Derelict Logs Recovered 1 | . . 1 Drone Launches . | . . . Drone Recoveries . | . . . Exploration | -11 -10 -10 ------------- Run | Yrd Mat Sub Turns Passed 2618 | 95 1367 1156 Spaces Moved 1862 | 82 888 892 Core 20 | 20 . . Treads . | . . . Legs . | . . . Wheels 1842 | 62 888 892 Hover . | . . . Flight . | . . . Fastest Speed 50 | 50 80 90 Average Speed 93 | 78 82 104 Slowest Speed 120 | 90 90 120 Overloaded Moves . | . . . Propulsion Burnouts . | . . . Robots Hopped . | . . . Potential Cave-ins . | . . . Cave-ins Triggered . | . . . Exploration Rate (%) 45 | 4 99 32 Regions Visited 2 Branch Regions 1 Pre-discovered Areas . | . . . Known Exits Taken . | . . . Unknown Exits Taken 2 | 1 1 . Scrap Searched 2 | . . 2 Spaces Dug 13 | . 13 . Terrain Destroyed 27 | . 20 7 Melee . | . . . Projectile 20 | . 20 . AOE 7 | . . 7 Terrain Rammed . | . . . Walls Destroyed . | . . . Machines Disabled . | . . . Actions | -11 -10 -10 --------- Run | Yrd Mat Sub Total 2397 | 102 1289 1006 Wait 284 | . 267 17 Move 1860 | 81 887 892 Hop . | . . . Pick Up 30 | 7 12 11 Fast Attach 17 | 8 1 8 Attach 9 | . 3 6 Detach 2 | 1 . 1 Swap 10 | . 5 5 Drop 25 | 1 13 11 Fire 160 | 4 101 55 Melee . | . . . Ram . | . . . Kick . | . . . Crush . | . . . Escape Stasis . | . . . Rewire . | . . . Trap . | . . . Miscellaneous . | . . . Route ------- -11/Scrapyard -10/Materials (discovered 6 exits: [*Mat x3] / *Min x2 / *Sub) -10/Subcaves (discovered 3 exits: [*Mat x2] / Rec) History --------- Turn | Location | Event 22 | -11/Scrapyard | Discovered new exit (range 16) 96 | -11/Scrapyard | Entered Materials 308 | -10/Materials | Build established: Mutant 314 | -10/Materials | Discovered new exit (range 15) 436 | -10/Materials | Discovered new exit (range 13) 618 | -10/Materials | Discovered new exit (range 5) 689 | -10/Materials | Discovered new exit (range 11) 935 | -10/Materials | Discovered new exit (range 10) 937 | -10/Materials | Central database locked down 992 | -10/Materials | Identified exit to Mines 1224 | -10/Materials | Discovered new exit (range 5) 1463 | -10/Materials | Entered Subcaves 1464 | -10/Subcaves | Approached by a straggling Scientist 1479 | -10/Subcaves | Visited Clippyterm 1482 | -10/Subcaves | Identified exit to Recycling 1482 | -10/Subcaves | Learned Factory garrison access intel 1549 | -10/Subcaves | Shifting Twisted Machinery released Battle Cannon 1590 | -10/Subcaves | Build established: Scavenger-Mutant 1648 | -10/Subcaves | Lost 4 parts (2p1n1w) 1711 | -10/Subcaves | Discovered new exit (range 13) 1734 | -10/Subcaves | Disturbed a concealed Subdweller 1803 | -10/Subcaves | Core integrity fell below 50% 1832 | -10/Subcaves | Core integrity fell below 20% 1860 | -10/Subcaves | Lost 3 parts (1p1n1w) 1915 | -10/Subcaves | Build established: Mutant 1979 | -10/Subcaves | Shifting Twisted Machinery released Barrage Gun 1994 | -10/Subcaves | Shifting Twisted Machinery released Sub. Power Source 2117 | -10/Subcaves | Discovered new exit (range 7) 2398 | -10/Subcaves | Learned location of 1 exit from Materials 2619 | -10/Subcaves | Destroyed by S-10 Pest with Light Assault Rifle Last Messages --------------- 02458_ Acquired Sub. Monowheel. 02459_ Dropped Mak. Leg. 02463_ Subatomizers dissect the Sub. Optics. 02463_ Acquired Sub. Monowheel. 02466_ Acquired 37 matter. 02468_ Acquired 7 matter. 02470_ Acquired 3 matter. 0H-5KF(c): "I think it's somewhere southeast of here" 02497_ Subatomizers dissect the Hvy. Assault Rifle. 02527_ Sub. Monowheel shoots sparks and powers down. 0H-5KF(c): "I think it's somewhere southeast of here" 02553_ Dropped Broken Sub. Monowheel. 02559_ Acquired Mak. Leg. 0H-5KF(c): "I think it's somewhere southeast of here" 02619_ S-10 Pest springs to life. Map ----- +----------------------------------------------------+ | ??????????????????????######### #? #???????? | | ??????????????????????????????## " #?? " #??????? | | ???????????????????????????????## #??# "##??????? | | ???????????????????????????????## #??? ##???????? | | ??????????????????????????????## " ##?? #???????? | | ??????????????????????????????# " #?# #???????? | | ?????????????????????????????## """#? ????????? | | ?????????????????????????????# ###?# ##???????? | | ?????????????????????????????# ##??# #???????? | | ?????????????????????????????# " "#?? ##???????? | | ?????????????????????????????## ""### #???????? | | ??????????????????????????????# "" ## # #????????? | | ??????????????????????????????# " ] #????????? | | ??????????????????????????????# #????????? | | ?????????????????????????????## ## #????????? | | ###???????###???????????????## #######????????? | | # ####???## ####???????????## #??????????????? | | #?### ####??????### ##??????????????? | | #### ##?????# ##???????????????? | | ##### ## #?????# ##????????????????? | | #### #### #?????# ##?????>??????????? | | ##??# ##????## ##""""???????????? | | < ##??# ##??### " "???????????? | | #??## #### " t t ????????? | | ## #???# s ????????? | | [### ##### c @ s ????????? | | =#?# ### ### ### ##???????????????? | | #### ####?# #?# ##?# ##????????????????? | | #?####????### #?## ##??#####?????????????????? | | #???????????#####??###?????????????????????????? | | ##??????????????????????????????????????????????? | | ##???????????????????????????????????????????????? | | ?????????????????????????????????????????????????? | | ##???????????????????????????????????????????????? | | #???????????????????????????????????????????????? | | #???????????????????????????????????????????????? | | #???????????????????????????????????????????????? | | ##???????????????????????????????????????????????? | | ?????????????????????????????????????????????????? | | ?????????????????????????????????????????????????? | | ?????????????????????????????????????????????????? | | ?????????????????????????????????????????????????? | | ?????????????????????????????????????????????????? | | ?????????????????????????????????????????????????? | | ?????????????????????????????????????????????????? | | ?????????????????????????????????????????????????? | | ?????????????????????????????????????????????????? | | ?????????????????????????????????????????????????? | | ?????????????????????????????????????????????????? | | ?????????????????????????????????????????????????? | +----------------------------------------------------+ Best States ------------- Heat Dissipation 35 Energy Generation 15 Energy Capacity 250 Matter Stores 300 Matter Capacity 300 Sight Range 16 Terrain Scan Density 10 Armor Coverage 100 Evasion (%) 44 Item Schematics ----------------- None Robot Schematics ------------------ None Fabricated ------------ Nothing Repaired ---------- Nothing Alien Tech Used ----------------- None Achievements -------------- None Challenges ------------ None Game ------ Seed DrainedMissileArticulator Manual? 0 Play Time 00:28:08 Cumulative 225.1 hours Start 2025.06.19 @ 18:08:50 End 2025.06.20 @ 02:32:55 Sessions 3 Manual Loads 0 Difficulty Rogue Special Mode None Game No. 213 Rogue 213 Adventurer 0 Explorer 0 Win Type - Total 1 Types 1/0/0/0/0/0/0/0/0/0 Lore% 55 Gallery% 59 Achievement% 47 Wizard Run 0 Options --------- Layout 2 ASCII 1 Keyboard 1 Movement Numpad Keybinds 0 Fullscreen 2 Font 32/TamsynBold Map View 50x44 Zoom Use 0% Tactical HUD 1 Map Filters NONE Filters NONE Steam 1 RUN: 6b7d6c75-0df2-4fb1-a9c6-11b707229d6f